bitfinex-derivatives/quotes_ETHF0:USTF0_20250427
["timestamp","ask_amount","ask_price","bid_price","bid_amount"]
[1745741918226,1.10313,1812.7,1812.4,8.6551]
[1745741918416,1.5841,1812.9,1812.4,8.6551]
[1745741918617,1.10317,1812.6,1812.4,8.6551]
[1745741918825,1.10292,1813.0,1812.4,8.6551]
[1745741919013,8.949,1813.2,1812.4,8.6551]
[1745741919014,1.10299,1812.9,1812.7,3.2078]
[1745741919219,1.10302,1812.8,1812.7,3.2078]
[1745741919725,1.10308,1812.7,1812.5,3.2078]
[1745741919919,1.10308,1812.7,1812.6,1.6022]
[1745741920114,1.10312,1812.7,1812.5,6.9298]
[1745741920319,10.5772,1813.2,1812.5,6.9298]
[1745741920622,1.10302,1812.8,1812.7,3.2078]
[1745741920822,1.10314,1812.6,1812.5,3.722]
[1745741921012,1.10314,1812.6,1812.5,6.9298]
[1745741922423,1.10314,1812.6,1812.5,3.722]
[1745741922625,1.10314,1812.6,1812.5,6.9298]
[1745741925524,3.2078,1812.7,1812.3,40.8]
[1745741925719,1.1032,1812.5,1812.4,1.5856]
[1745741926121,1.1032,1812.5,1812.4,5.3076]
[1745741926315,6.5402,1812.8,1812.4,5.3076]
[1745741926529,1.10309,1812.7,1812.4,6.41083]
[1745741928321,1.10309,1812.7,1812.5,3.2078]
[1745741928521,1.10309,1812.7,1812.6,1.6641]
[1745741929326,1.10314,1812.6,1812.5,3.722]
[1745741930224,1.5636,1812.7,1812.5,3.722]
[1745741930529,1.10314,1812.6,1812.5,5.304]
[1745741934531,3.2078,1812.9,1812.5,9.77355]
[1745741934831,4.9018,1813.1,1812.6,4.31089]
[1745741935022,1.10296,1812.9,1812.7,1.6968]
[1745741935223,4.9018,1813.1,1812.7,1.6968]
[1745741935423,1.10297,1812.9,1812.7,1.6968]
[1745741935623,1.103,1812.9,1812.7,1.6968]
[1745741935828,1.10301,1812.9,1812.7,1.6968]
[1745741936031,1.10302,1812.8,1812.7,1.6968]
[1745741936233,1.10302,1812.8,1812.7,5.4188]
[1745741937033,7.65899,1813.1,1812.7,5.4188]
[1745741937034,1.10299,1812.9,1812.7,5.4188]
[1745741937330,4.9018,1813.1,1812.7,5.4188]
[1745741937539,1.10302,1812.8,1812.7,5.4188]
[1745741938234,1.10299,1812.9,1812.7,5.4188]
[1745741938530,1.10301,1812.9,1812.7,5.4188]
[1745741938731,1.10302,1812.8,1812.7,5.4188]
[1745741942933,1.10302,1812.8,1812.7,3.722]
[1745741944137,1.10308,1812.7,1812.6,7.67735]
[1745741945340,1.10308,1812.7,1812.6,4.46955]
[1745741945935,2.83148,1812.7,1812.6,4.46955]
[1745741946738,6.03928,1812.7,1812.6,4.46955]
[1745741947240,1.10332,1812.3,1812.2,7.67735]
[1745741947441,1.10332,1812.3,1812.2,9.24635]
[1745741947942,1.10332,1812.3,1812.2,50.04635]
[1745741948144,1.10332,1812.3,1812.2,53.76835]
[1745741948343,1.10332,1812.3,1812.2,12.96835]
[1745741950546,1.10332,1812.3,1812.2,11.39935]
[1745741950958,1.10332,1812.3,1812.2,8.19155]
[1745741951156,6.10332,1812.3,1812.2,4.46955]
[1745741951351,6.10332,1812.3,1812.0,4.8128]
[1745741951352,1.10344,1812.1,1812.0,3.2078]
[1745741951558,1.10363,1811.8,1811.7,46.87455]
[1745741952152,1.10363,1811.8,1811.7,50.59655]
[1745741952859,1.10338,1812.2,1811.7,55.59655]
[1745741953059,1.10338,1812.2,1812.1,3.2078]
[1745741953256,1.6314,1812.4,1811.8,5.29535]
[1745741953257,1.10353,1812.0,1811.8,8.50315]
[1745741953458,4.8392,1812.4,1811.9,1.6597]
[1745741953659,1.1035,1812.0,1811.9,1.6597]
[1745741953957,1.10349,1812.1,1811.9,1.6597]
[1745741954151,1.10349,1812.1,1811.9,5.3817]
[1745741954353,4.8392,1812.4,1811.9,6.48522]
[1745741954857,1.10339,1812.2,1812.0,3.2078]
[1745741955051,1.10339,1812.2,1812.1,1.623]
[1745741955252,1.10332,1812.3,1812.1,1.623]
[1745741955557,1.10338,1812.2,1812.1,1.623]
[1745741955746,4.8392,1812.4,1812.1,1.623]
[1745741955747,1.10337,1812.3,1812.1,1.623]
[1745741956052,4.8392,1812.4,1812.1,1.623]
[1745741956258,1.10321,1812.5,1812.2,3.2078]
[1745741956561,1.92057,1812.6,1812.3,1.623]
[1745741956860,1.10332,1812.3,1812.2,4.46955]
[1745741957361,2.79162,1812.3,1812.2,4.46955]
[1745741957863,3.62092,1812.3,1812.2,4.46955]
[1745741958260,8.62092,1812.3,1812.2,4.46955]
[1745741958956,3.62092,1812.3,1812.2,4.46955]
[1745741959558,1.1035,1812.0,1811.9,1.623]
[1745741960154,1.1035,1812.0,1811.9,5.345]
[1745741960769,1.1035,1812.0,1811.9,3.722]
[1745741961262,1.10357,1811.9,1811.8,4.46955]
[1745741961457,2.69187,1811.9,1811.8,4.46955]
[1745741963272,1.5883,1811.9,1811.8,4.46955]
[1745741963563,2.69187,1811.9,1811.8,4.46955]
[1745741964059,2.69187,1811.9,1811.8,8.19155]
[1745741968066,2.69187,1811.9,1811.4,0.27599911]
[1745741968067,10.34723,1811.9,1811.4,0.27599911]
[1745741968265,10.34723,1811.9,1810.7,7.25143145]
[1745741968266,1.10424,1810.8,1810.7,7.25143145]
[1745741968667,4.8125,1811.3,1810.7,12.18333145]
[1745741968866,3.2078,1811.2,1810.7,12.18333145]
[1745741969073,1.10424,1810.8,1810.7,12.69753145]
[1745741970172,1.10424,1810.8,1810.7,5.4461]
[1745741970866,1.10424,1810.8,1810.7,3.722]
[1745741971267,1.10436,1810.6,1810.5,1.5864]
[1745741972068,1.10436,1810.6,1810.5,5.3084]
[1745741972365,4.0285,1810.9,1810.5,5.3084]
[1745741972566,1.10428,1810.8,1810.5,5.3084]
[1745741972764,2.68938,1810.8,1810.5,46.1084]
[1745741973969,4.563,1811.0,1810.5,49.3162]
[1745741974275,1.10414,1811.0,1810.7,3.2078]
[1745741974471,1.10414,1811.0,1810.8,1.7108]
[1745741975665,4.809,1811.1,1810.7,3.722]
[1745741975666,3.2078,1811.1,1810.7,3.722]
[1745741975873,3.2078,1811.1,1809.3,7.25143145]
[1745741975874,9.181,1810.5,1809.3,7.25143145]
[1745741976173,9.181,1810.5,1809.3,49.75233145]
[1745741976174,3.19881682,1809.7,1809.3,49.75233145]
[1745741976366,3.19881682,1809.7,1809.4,1.7009]
[1745741976568,1.10499,1809.6,1809.4,1.7009]
[1745741976762,3.19881682,1809.7,1809.4,1.7009]
[1745741976763,1.10503,1809.5,1809.4,1.7009]
[1745741976971,4.31283,1809.5,1809.4,1.7009]
[1745741977166,3.2078,1809.5,1809.4,5.4229]
[1745741977371,4.31283,1809.5,1809.4,5.4229]
[1745741977569,4.31283,1809.5,1809.4,2.55063]
[1745741977774,1.10515,1809.3,1809.2,10.87714717]
[1745741977967,4.31295,1809.3,1809.2,10.87714717]
[1745741978273,4.31295,1809.3,1809.2,14.59914717]
[1745741979273,4.31295,1809.3,1809.2,10.87714717]
[1745741979864,8.2078,1809.3,1809.0,17.06105257]
[1745741980070,4.31307,1809.1,1809.0,15.52752257]
[1745741980277,9.12307,1809.1,1809.0,15.52752257]
[1745741980466,9.12307,1809.1,1808.9,18.40495297]
[1745741980467,1.10533,1809.0,1808.9,0.27637435]
[1745741980662,2.75113,1809.0,1808.9,0.27637435]
[1745741981069,1.6458,1809.0,1808.6,0.27637435]
[1745741981273,3.2078,1808.8,1808.7,1.99187435]
[1745741982071,3.2078,1808.8,1808.7,5.71387435]
[1745741982771,4.31326,1808.8,1808.7,5.71387435]
[1745741982970,3.2078,1808.8,1808.7,5.71387435]
[1745741983475,4.31326,1808.8,1808.7,5.71387435]
[1745741983681,5.98616,1808.8,1808.7,5.71387435]
[1745741984573,4.8807,1808.8,1808.7,5.71387435]
[1745741984782,3.2078,1808.8,1808.7,5.71387435]
[1745741985582,4.31326,1808.8,1808.7,5.71387435]
[1745741985973,3.2078,1808.8,1808.7,5.71387435]
[1745741986178,3.2078,1809.0,1808.7,10.71387435]
[1745741986373,3.2078,1809.0,1808.7,5.71387435]
[1745741986578,4.31317,1809.0,1808.7,5.71387435]
[1745741986769,3.2078,1809.0,1808.9,0.27637435]
[1745741986972,2.7175,1808.9,1808.8,0.27637435]
[1745741987180,2.7175,1808.9,1808.8,3.99837435]
[1745741989083,1.1054,1808.9,1808.8,3.99837435]
[1745741989281,2.8371,1808.9,1808.8,3.99837435]
[1745741990077,2.8371,1808.9,1808.8,0.27637435]
[1745741991682,3.6352,1808.9,1808.8,0.27637435]
[1745741992487,1.10551,1808.8,1808.6,0.27637435]
[1745741992678,6.04431,1808.8,1808.7,1.6682]
[1745741993283,3.2078,1808.8,1808.7,5.66657435]
[1745741993483,3.2078,1809.0,1808.7,11.77209435]
[1745741993784,3.2078,1809.0,1808.7,6.77209435]
[1745741994085,4.31314,1809.0,1808.7,6.77209435]
[1745741994583,3.2078,1809.0,1808.7,6.77209435]
[1745741995186,4.31316,1809.0,1808.7,5.66657435]
[1745741995482,3.2078,1809.0,1808.7,5.66657435]
[1745741995681,3.2078,1809.0,1808.7,6.77207435]
[1745741995881,3.2078,1809.0,1808.7,5.66657435]
[1745741996075,3.2078,1809.0,1808.7,6.77208435]
[1745741996685,3.2078,1809.0,1808.7,5.66657435]
[1745741996884,4.31317,1809.0,1808.8,40.8]
[1745741997185,4.31317,1809.0,1808.9,1.90867435]
[1745741997386,3.2078,1809.0,1808.9,1.90867435]
[1745741997587,4.31313,1809.0,1808.9,1.90867435]
[1745741998085,4.31313,1809.0,1808.9,5.63067435]
[1745741998288,3.2078,1809.0,1808.9,5.63067435]
[1745741998487,4.31313,1809.0,1808.9,5.63067435]
[1745742001689,4.31313,1809.0,1808.9,3.99837435]
[1745742002190,3.2078,1809.0,1808.7,41.07637435]
[1745742002384,1.1054,1808.9,1808.8,1.6081]
[1745742002582,1.1054,1808.9,1808.8,1.88447435]
[1745742003084,4.31316,1809.0,1808.8,5.60647435]
[1745742003483,4.31316,1809.0,1808.9,1.7089]
[1745742004286,4.31302,1809.2,1808.9,5.70727435]
[1745742004481,4.31302,1809.2,1808.9,6.52897435]
[1745742004677,3.2078,1809.2,1808.9,6.52897435]
[1745742004887,1.10528,1809.1,1808.9,6.52897435]
[1745742005487,1.10533,1809.0,1808.9,6.52897435]
[1745742005686,4.31313,1809.0,1808.9,5.70727435]
[1745742006882,4.31313,1809.0,1808.9,3.99837435]
[1745742007081,5.91333,1809.0,1808.9,0.27637435]
[1745742007286,1.10546,1808.8,1808.7,0.27637435]
[1745742007590,1.10574,1808.4,1808.1,0.27637435]
[1745742007785,4.31356,1808.3,1808.2,1.85667435]
[1745742009086,4.31356,1808.3,1808.2,5.57867435]
[1745742009384,3.2078,1808.3,1808.2,5.57867435]
[1745742009592,4.31356,1808.3,1808.2,5.57867435]
[1745742011984,1.6002,1808.5,1808.2,5.57867435]
[1745742011985,3.2078,1808.5,1808.2,10.57867435]
[1745742012293,4.31342,1808.6,1808.3,0.27637435]
[1745742012492,3.2078,1808.6,1808.4,1.5687]
[1745742012693,1.10564,1808.5,1808.4,1.5687]
[1745742012893,2.81234,1808.5,1808.4,1.5687]
[1745742013192,2.81234,1808.5,1808.4,3.99837435]
[1745742014887,4.31344,1808.6,1808.4,3.99837435]
[1745742015086,1.10564,1808.5,1808.4,3.99837435]
[1745742015989,3.2078,1808.6,1808.4,3.99837435]
[1745742016198,4.31341,1808.6,1808.4,3.99837435]
[1745742016397,4.31343,1808.6,1808.4,3.99837435]
[1745742016787,3.2078,1808.6,1808.4,3.99837435]
[1745742016988,3.2078,1808.8,1808.6,0.27637435]
[1745742017190,3.2078,1808.8,1808.7,1.10552]
[1745742017890,3.2078,1808.8,1808.6,42.18191435]
[1745742018093,5.93735,1809.0,1808.6,42.18189435]
[1745742018393,5.93735,1809.0,1808.7,1.10551]
[1745742018696,5.93735,1809.0,1808.8,0.27637435]
[1745742019594,1.1054,1808.9,1808.8,0.27637435]
[1745742019796,5.93737,1809.0,1808.8,0.27637435]
[1745742020093,4.832,1809.0,1808.8,3.99837435]
[1745742020291,5.93734,1809.0,1808.8,3.99837435]
[1745742020492,1.1054,1808.9,1808.8,3.99837435]
[1745742020692,4.832,1809.0,1808.8,3.99837435]
[1745742020898,5.93738,1809.0,1808.8,3.99837435]
[1745742021698,3.2078,1809.0,1808.8,3.99837435]
[1745742021998,4.31314,1809.0,1808.8,3.99837435]
[1745742022497,1.1054,1808.9,1808.8,3.99837435]
[1745742023399,2.7876,1808.9,1808.8,3.99837435]
[1745742024088,2.7876,1808.9,1808.8,0.27637435]
[1745742024297,1.10558,1808.6,1808.5,0.27637435]
[1745742024499,4.31338,1808.6,1808.5,0.27637435]
[1745742025198,3.2078,1808.6,1808.5,3.99837435]
[1745742026104,4.7883,1808.6,1808.5,3.99837435]
[1745742027002,5.89388,1808.6,1808.5,3.99837435]
[1745742028498,5.89388,1808.6,1808.5,0.27637435]
[1745742029297,1.10569,1808.5,1808.2,0.27637435]
[1745742029605,3.2078,1808.4,1808.2,0.27637435]
[1745742029798,4.31352,1808.4,1808.2,0.27637435]
[1745742029997,5.93932,1808.4,1808.2,0.27637435]
[1745742030198,5.93932,1808.4,1808.2,3.99837435]
[1745742030603,4.8336,1808.4,1808.2,3.99837435]
[1745742031201,5.93932,1808.4,1808.2,3.99837435]
[1745742031499,5.93932,1808.4,1808.3,1.6606]
[1745742033306,5.93932,1808.4,1808.3,5.3826]
[1745742034803,3.2078,1808.4,1808.3,5.65897435]
[1745742036206,4.9208,1808.4,1808.3,5.65897435]
[1745742037207,4.9208,1808.4,1808.3,1.93697435]
[1745742037408,6.0265,1808.4,1808.3,1.93697435]
[1745742037707,4.9208,1808.4,1808.2,0.27637435]
[1745742037908,4.9208,1808.4,1808.2,1.98027435]
[1745742038101,6.02656,1808.4,1808.2,5.70227435]
[1745742038601,1.10576,1808.3,1808.2,5.70227435]
[1745742038907,2.72806,1808.3,1808.2,5.70227435]
[1745742039201,1.6223,1808.3,1808.2,5.70227435]
[1745742041507,3.2078,1808.6,1808.3,0.27637435]
[1745742041699,3.2078,1808.6,1808.5,0.27637435]
[1745742042099,3.2078,1808.6,1808.5,1.99377435]
[1745742042298,3.2078,1808.6,1808.5,5.71577435]
[1745742042500,3.2078,1808.6,1808.5,6.82141435]
[1745742042698,3.2078,1808.6,1808.5,11.82141435]
[1745742045409,3.2078,1808.6,1808.5,6.82141435]
[1745742047411,1.10549,1808.8,1808.6,1.10554]
[1745742047713,1.10538,1809.0,1808.8,1.38183435]
[1745742047903,1.10538,1809.0,1808.9,3.2078]
[1745742048104,1.10538,1809.0,1808.9,6.9298]
[1745742048504,2.79131,1809.1,1808.9,7.20617435]
[1745742048910,1.10531,1809.1,1808.9,8.31155435]
[1745742049309,2.79119,1809.3,1809.2,0.27637435]
[1745742049512,7.6428,1809.4,1809.2,1.38157435]
[1745742049709,1.10509,1809.4,1809.3,0.27637435]
[1745742050011,1.10505,1809.5,1809.3,0.27637435]
[1745742050213,2.69615,1809.5,1809.3,3.99837435]
[1745742050413,1.5911,1809.5,1809.3,3.99837435]
[1745742050911,1.5911,1809.5,1809.3,5.10351435]
[1745742051108,4.0714,1809.6,1809.5,0.27637435]
[1745742051303,6.76747,1809.6,1809.4,0.27637435]
[1745742051505,5.6625,1809.6,1809.4,0.27637435]
[1745742052313,5.6625,1809.6,1809.4,5.10346435]
[1745742052517,3.2078,1809.9,1809.6,0.27637435]
[1745742052712,3.2078,1809.9,1809.7,1.10486]
[1745742053017,3.2078,1809.9,1809.8,1.38122435]
[1745742053713,3.2078,1810.3,1809.8,0.27637435]
[1745742053915,1.6454,1810.1,1809.8,5.57454009]
[1745742054214,1.6454,1810.1,1809.8,9.29654009]
[1745742054713,1.6454,1810.1,1809.8,9.29655009]
[1745742055913,2.75007,1810.1,1809.8,8.19173009]
[1745742056308,1.6454,1810.1,1809.8,8.19173009]
[1745742056508,2.75009,1810.1,1809.8,8.19173009]
[1745742057111,1.10476,1810.0,1809.8,8.19173009]
[1745742057313,1.6861,1810.0,1809.8,8.19173009]
[1745742057514,2.79085,1810.0,1809.8,8.19173009]
[1745742057711,1.10479,1809.9,1809.8,8.19173009]
[1745742057912,2.79089,1809.9,1809.8,8.19173009]
[1745742059417,1.6861,1809.9,1809.8,8.19173009]
[1745742059612,2.79089,1809.9,1809.8,8.19173009]
[1745742060418,7.79089,1809.9,1809.8,8.19173009]
[1745742061317,7.79089,1809.9,1809.8,3.99837435]
[1745742061911,2.79089,1809.9,1809.8,3.99837435]
[1745742066420,1.10476,1810.0,1809.8,3.99837435]
[1745742066621,1.10476,1810.0,1809.9,1.6713]
[1745742067031,1.10476,1810.0,1809.9,1.94767435]
[1745742067222,1.10476,1810.0,1809.9,5.66967435]
[1745742067614,1.90791,1810.2,1809.9,6.77444435]
[1745742067916,6.01159,1810.3,1809.9,10.96780009]
[1745742068216,4.907,1810.3,1810.1,0.27637435]
[1745742068409,4.907,1810.3,1810.2,1.5893]
[1745742068724,6.01154,1810.3,1810.2,1.86567435]
[1745742069221,6.01154,1810.3,1810.2,5.58767435]
[1745742069415,6.01154,1810.3,1810.2,3.99837435]
[1745742070716,3.2078,1810.3,1810.2,3.99837435]
[1745742070910,1.10454,1810.3,1810.2,3.99837435]
[1745742071217,2.71042,1810.4,1810.2,3.99837435]
[1745742071419,9.43505,1810.5,1810.3,1.99757435]
[1745742071615,1.10448,1810.4,1810.3,1.99757435]
[1745742072218,2.71038,1810.4,1810.3,5.71957435]
[1745742075818,2.71038,1810.4,1810.3,3.99837435]
[1745742076020,3.2078,1810.7,1810.3,3.99837435]
[1745742076228,1.10441,1810.6,1810.4,1.576]
[1745742076421,2.81411,1810.6,1810.4,1.576]
[1745742076721,3.2078,1810.7,1810.5,0.27637435]
[1745742076924,3.2078,1810.7,1810.6,1.92147435]
[1745742077126,4.3121,1810.7,1810.6,42.72147435]
[1745742077919,4.3121,1810.7,1810.6,1.92147435]
[1745742078216,4.3121,1810.7,1810.6,0.27637435]
[1745742080326,1.10436,1810.6,1810.5,0.27637435]
[1745742080527,2.81096,1810.6,1810.5,0.27637435]
[1745742080826,3.59196,1810.6,1810.5,0.27637435]
[1745742081124,3.59196,1810.6,1810.5,3.99837435]
[1745742084820,5.37936,1810.6,1810.5,3.99837435]
[1745742085130,4.275,1810.6,1810.5,5.70677435]
[1745742085428,5.37936,1810.6,1810.5,5.70677435]
[1745742085726,1.10436,1810.6,1810.5,5.70677435]
[1745742085933,4.31214,1810.7,1810.5,5.70677435]
[1745742086528,1.10428,1810.8,1810.5,5.70677435]
[1745742086721,1.10426,1810.8,1810.5,5.70677435]
[1745742087327,1.10426,1810.8,1810.5,6.81118435]
[1745742087629,1.10426,1810.8,1810.5,5.70677435]
[1745742087829,1.1043,1810.7,1810.5,5.70677435]
[1745742088021,1.10428,1810.8,1810.5,5.70677435]
[1745742088221,1.10431,1810.7,1810.5,5.70677435]
[1745742088421,2.5512,1810.9,1810.5,5.70677435]
[1745742088623,1.10436,1810.6,1810.5,5.70677435]
[1745742089129,4.31216,1810.6,1810.5,0.27637435]
[1745742090232,4.31216,1810.6,1810.5,3.99837435]
[1745742090627,2.76106,1810.5,1810.1,5.82265574]
[1745742090834,1.1046,1810.2,1810.1,5.82265574]
[1745742091130,1.1046,1810.2,1810.1,4.19335574]
[1745742091329,1.10456,1810.3,1810.1,4.19335574]
[1745742091529,1.10456,1810.3,1810.1,5.01435574]
[1745742092432,3.2078,1810.4,1810.1,9.32681574]
[1745742092633,4.31229,1810.4,1810.2,0.7953]
[1745742093137,4.31229,1810.4,1810.2,4.5173]
[1745742093836,3.2078,1810.4,1810.2,4.5173]
[1745742094231,3.2078,1810.4,1810.2,5.62189]
[1745742094433,5.37838,1810.6,1810.3,5.29787574]
[1745742094920,1.10438,1810.6,1810.3,5.29787574]
[1745742095124,5.6164,1810.8,1810.3,9.01987574]
[1745742095323,5.6164,1810.8,1810.3,12.22767574]
[1745742095529,1.10443,1810.5,1810.3,11.12315574]
[1745742095731,1.10443,1810.5,1810.3,7.91535574]
[1745742096028,8.37707,1810.8,1810.3,7.91535574]
[1745742096229,1.10448,1810.4,1810.3,7.91535574]
[1745742098438,1.10448,1810.4,1810.3,3.722]
[1745742099848,3.2078,1810.4,1810.3,3.722]
[1745742100135,4.274,1810.9,1810.3,3.722]
[1745742100136,1.10444,1810.5,1810.3,3.722]
[1745742100333,2.78905,1810.7,1810.3,5.62384]
[1745742100529,1.10439,1810.6,1810.3,4.5193]
[1745742100726,1.10439,1810.6,1810.3,5.62383]
[1745742100924,2.78904,1810.7,1810.3,5.62383]
[1745742101131,1.10437,1810.6,1810.3,4.5193]
[1745742101529,1.10442,1810.5,1810.4,1.662]
[1745742101724,1.1044,1810.6,1810.4,1.662]
[1745742102238,1.1044,1810.6,1810.4,5.384]
[1745742103032,1.10442,1810.5,1810.4,5.384]
[1745742104239,2.79462,1810.5,1810.4,5.384]
[1745742105641,2.79462,1810.5,1810.4,3.722]
[1745742106640,11.97562,1810.5,1810.4,3.39479435]
[1745742107240,1.10454,1810.3,1810.2,4.19335574]
[1745742107446,4.31234,1810.3,1810.2,4.19335574]
[1745742107636,4.31234,1810.3,1809.7,0.8104]
[1745742107637,1.10485,1809.8,1809.7,0.8104]
[1745742108137,1.10485,1809.8,1809.7,6.2451]
[1745742108328,1.10485,1809.8,1809.7,3.722]
[1745742108529,3.64295,1809.8,1809.7,3.722]
[1745742108936,0.999,1809.8,1809.7,7.91535574]
[1745742109239,0.999,1809.8,1809.7,12.91535574]
[1745742109641,0.999,1809.8,1809.7,15.43845574]
[1745742110137,0.999,1809.8,1809.7,10.43845574]
[1745742111142,2.10385,1809.8,1809.7,10.43845574]
[1745742112049,2.10385,1809.8,1809.7,3.722]
[1745742112050,10.31165,1809.8,1809.7,3.722]
[1745742112245,1.10509,1809.4,1809.3,5.81555574]
[1745742113342,1.10509,1809.4,1809.3,9.53755574]
[1745742113846,2.81508,1809.5,1809.3,9.53755574]
[1745742114046,1.10503,1809.6,1809.4,1.5744]
[1745742114347,1.10503,1809.5,1809.4,1.5744]
[1745742115249,1.10503,1809.5,1809.4,3.722]
[1745742116347,2.80343,1809.5,1809.4,3.722]
[1745742117947,3.63473,1809.5,1809.4,3.722]
[1745742122951,4.63373,1809.5,1809.4,3.722]
[1745742124149,1.10527,1809.1,1809.0,1.6489]
[1745742124753,2.71717,1809.1,1809.0,1.6489]
[1745742125152,2.71717,1809.1,1809.0,5.3709]
[1745742125750,2.71717,1809.1,1809.0,3.722]
[1745742126547,9.56547,1809.1,1809.0,2.14188]
[1745742126748,10.33017,1809.1,1809.0,0.07821]
[1745742126949,10.33017,1809.1,1809.0,1e-05]
[1745742127353,1.10558,1808.6,1808.5,1.5795]
[1745742128141,2.73908,1808.6,1808.5,1.5795]
[1745742129251,2.73908,1808.6,1808.5,5.3015]
[1745742129555,5.94688,1808.6,1808.5,5.3015]
[1745742129752,5.94688,1808.6,1808.5,3.722]
[1745742130148,1.10564,1808.5,1808.4,0.8151]
[1745742130348,2.82804,1808.5,1808.4,0.8151]
[1745742131148,2.82804,1808.5,1808.4,4.5371]
[1745742131650,3.82704,1808.5,1808.4,4.5371]
[1745742131850,3.82704,1808.5,1808.4,3.722]
[1745742132853,3.82260868,1808.5,1808.4,3.722]
[1745742133156,3.82260868,1808.5,1808.3,1.5758]
[1745742133157,1.1057,1808.4,1808.3,1.5758]
[1745742133952,2.1047,1808.4,1808.3,1.5758]
[1745742134147,3.7721,1808.4,1808.3,5.2978]
[1745742135158,3.7721,1808.4,1808.3,2.35954]
[1745742135353,6.9799,1808.4,1808.3,2.35954]
[1745742136163,1.10582,1808.2,1808.1,1.7165]
[1745742136349,5.31262,1808.2,1808.1,1.7165]
[1745742140262,6.91552,1808.2,1808.1,1.7165]
[1745742141862,2.76472,1808.1,1807.7,0.8467]
[1745742142161,1.10604,1807.9,1807.7,6.2488]
[1745742142560,0.999,1808.0,1807.7,6.2488]
[1745742142561,1.10607,1807.8,1807.7,6.2488]
[1745742143161,1.10605,1807.9,1807.7,6.2488]
[1745742144272,0.999,1808.0,1807.7,6.2488]
[1745742144658,1.10607,1807.8,1807.7,6.2488]
[1745742144967,2.10496,1808.0,1807.7,10.56273]
[1745742145358,0.999,1808.0,1807.9,4.31381]
[1745742146163,0.999,1808.0,1807.9,8.03581]
[1745742146652,2.10495,1808.0,1807.9,6.9298]
[1745742147060,0.999,1808.0,1807.9,6.9298]
[1745742147258,0.999,1808.0,1807.9,8.03581]
[1745742148062,2.10495,1808.0,1807.9,6.9298]
[1745742148656,2.10495,1808.0,1807.9,9.4706]
[1745742149259,2.10495,1808.0,1807.9,14.76996574]
[1745742149461,2.10495,1808.0,1807.9,13.66395574]
[1745742149661,2.10495,1808.0,1807.9,10.45615574]
[1745742152966,2.10495,1808.0,1807.9,7.91535574]
[1745742155967,0.999,1808.0,1807.9,7.91535574]
[1745742156571,0.999,1808.0,1807.9,8.70665574]
[1745742157664,0.999,1808.0,1807.9,10.38915574]
[1745742157866,2.10495,1808.0,1807.9,10.38915574]
[1745742162271,0.999,1808.0,1807.9,10.38915574]
[1745742162477,0.999,1808.0,1807.9,11.49516574]
[1745742164081,0.999,1808.0,1807.9,16.49516574]
[1745742164276,1.10595,1808.0,1807.9,7.91535574]
[1745742164584,1.10595,1808.0,1807.9,9.53665574]
[1745742165180,0.999,1808.2,1807.9,9.53665574]
[1745742165473,1.10591,1808.1,1808.0,1.6631]
[1745742165672,2.10486,1808.2,1808.0,2.76903]
[1745742165866,2.10486,1808.2,1808.1,0.7838]
[1745742166068,2.10486,1808.2,1808.1,2.4469]
[1745742167977,3.72996,1808.2,1808.1,2.4469]
[1745742169083,3.72996,1808.2,1808.1,1.6631]
[1745742170981,1.10589,1808.1,1808.0,3.722]
[1745742171183,2.81459,1808.1,1808.0,3.722]
[1745742171368,2.81459,1808.1,1808.0,5.4051]
[1745742172383,2.10486,1808.2,1808.0,5.4051]
[1745742172585,1.10589,1808.1,1808.0,5.4051]
[1745742172879,1.10589,1808.1,1808.0,3.722]
[1745742173084,2.71069,1808.1,1808.0,3.722]
[1745742173979,0.999,1808.2,1808.0,3.722]
[1745742174185,2.10485,1808.2,1808.0,5.4051]
[1745742174484,1.10589,1808.1,1808.0,5.4051]
[1745742174784,2.83339,1808.1,1808.0,5.4051]
[1745742175685,0.999,1808.1,1808.0,5.4051]
[1745742177584,0.999,1808.1,1808.0,6.51105]
[1745742177783,0.999,1808.1,1808.0,9.71885]
[1745742178081,3.2078,1808.7,1808.0,17.80625574]
[1745742178289,6.76646,1808.7,1808.3,3.2078]
[1745742178482,5.10949,1808.8,1808.6,3.2078]
[1745742178680,5.10949,1808.8,1808.7,1.5686]
[1745742179188,5.10949,1808.8,1808.7,5.2906]
[1745742179390,5.10946,1808.8,1808.7,5.2906]
[1745742180991,1.10546,1808.8,1808.7,5.2906]
[1745742183796,1.6144,1808.9,1808.7,5.2906]
[1745742183797,2.71982,1808.9,1808.7,5.2906]
[1745742183997,2.71982,1808.9,1808.8,1.6576]
[1745742184190,2.71982,1808.9,1808.8,5.3796]
[1745742185203,2.71982,1808.9,1808.8,3.722]
[1745742187194,1.10552,1808.7,1808.6,7.40115574]
[1745742187591,1.10552,1808.7,1808.6,4.19335574]
[1745742187899,6.96612,1808.7,1808.6,3.19435574]
[1745742188091,8.68402,1808.7,1808.6,3.19435574]
[1745742188493,1.10576,1808.3,1808.2,3.2078]
[1745742188791,1.10582,1808.2,1808.1,3.19435574]
[1745742189092,3.68432,1808.2,1808.1,3.19435574]
[1745742189995,3.2078,1808.8,1808.1,11.40215574]
[1745742190191,2.78616,1808.7,1808.2,2.6852]
[1745742190391,1.10558,1808.6,1808.2,1.5794]
[1745742190591,1.10558,1808.6,1808.2,2.68522]
[1745742190792,1.10558,1808.6,1808.3,1.10576]
[1745742190993,1.10559,1808.6,1808.4,1.5794]
[1745742191295,1.6806,1808.9,1808.4,6.0985]
[1745742191495,0.7955,1808.8,1808.4,6.0985]
[1745742191696,1.10559,1808.6,1808.4,6.0985]
[1745742195191,1.10564,1808.5,1808.4,6.0985]